Cogmind - Beta 14 @@@ ROGUE MODE // 2024.10.04 @ 13:22:51 Player: Berg Result: Destroyed by G-47 Trooper with Particle Gun Performance ------------- Evolutions (2) 1000 Regions Visited (4) 800 Robots Destroyed (44) 220 Value Destroyed (1410) 1410 Prototype IDs (2) 40 Alien Tech Used (0) 0 Bonus (200) 200 TOTAL SCORE: 3670 Bonus ------- Entered Garrisons 200 Cogmind --------- Core Integrity 0/550 Matter 153/300 Energy 91/100 System Corruption 0% Temperature Cool (34) Movement Walking (120) Location -8/Garrison Parts ------- > --- POWER (1) -------- (None) > --- PROPULSION (4) --- Aluminum Leg Aluminum Leg > --- UTILITY (4) ------ Improved Signal Interpreter > --- WEAPON (2) ------- Particle Gun Rocket Launcher > --- INVENTORY (5) ---- Subdweller Power Source Improved Hover Unit Improved VTOL Module Large Matter Pod (150) Tiamat Bomb Trap Peak State ------------ > --- POWER ------------ Deuterium Engine > --- PROPULSION ------- Improved VTOL Module Improved VTOL Module Improved VTOL Module Improved VTOL Module > --- UTILITY ---------- Medium Storage Unit Weight Redist. System Improved Signal Interpreter > --- WEAPON ----------- Subdweller Laser Shotgun > --- INVENTORY -------- Subdweller Power Source Deuterium Engine Compact Wheel Improved Hover Unit Large Matter Pod Beam Cannon Rocket Launcher Rocket Launcher [Rating: 30] Favorites ----------- Power Ion Engine Engine Ion Engine Power Core Light Nuclear Core Propulsion Light Treads Treads Light Treads Leg Aluminum Leg Wheel Compact Wheel Hover Unit Hover Unit Flight Unit Improved VTOL Module Utility Medium Storage Unit Device Seismic Detector Storage Medium Storage Unit Processor Improved Signal Interpreter Protection Makeshift Kinetic Plating Weapon Subdweller Beam Cannon Energy Gun Small Laser Energy Cannon Subdweller Beam Cannon Ballistic Gun Assault Rifle Ballistic Cannon Battle Cannon Launcher Rocket Launcher Build | -11 -10 -10 -8 -8 ------- Run | Yrd Mat Sub Mat Gar Slots Evolved 4 | . . . 4 . Power . | . . . . . Propulsion 2 | . . . 2 . Utility 2 | . . . 2 . Weapon . | . . . . . Parts Attached 52 | 9 9 9 18 7 Power 8 | 1 2 2 2 1 Engine 7 | 1 2 2 1 1 Core 1 | . . . 1 . Reactor . | . . . . . Propulsion 15 | 2 2 . 8 3 Treads 4 | 2 2 . . . Leg 2 | . . . . 2 Wheel 2 | . . . 1 1 Hover 3 | . . . 3 . Flight 4 | . . . 4 . Utility 9 | 2 2 2 3 . Device 3 | 1 . . 2 . Storage 2 | 1 1 . . . Processor 1 | . . . 1 . Hackware . | . . . . . Protection 3 | . 1 2 . . Artifact . | . . . . . Weapon 20 | 4 3 5 5 3 Energy Gun 4 | 2 . . 1 1 Energy Cannon 3 | . . 1 2 . Ballistic Gun 7 | 2 1 2 2 . Ballistic Cannon 1 | . . 1 . . Launcher 5 | . 2 1 . 2 Special Weapon . | . . . . . Impact Weapon . | . . . . . Slashing Weapon . | . . . . . Piercing Weapon . | . . . . . Special Melee Weapon . | . . . . . Unidentified Prototypes 2 | . . . 2 . Parts Lost 18 | . . 4 10 4 Power 3 | . . 1 1 1 Propulsion 5 | . . 1 3 1 Utility 4 | . . 1 2 1 Weapon 6 | . . 1 4 1 Highest Loss Streak 8 | . . 2 8 2 To Critical Strikes . | . . . . . Average Slot Usage (%) 88 | . 100 90 79 45 Engine 12 | . 14 14 4 7 Treads 19 | . 28 20 2 . Hover 1 | . . . 10 . Flight 1 | . . . 7 8 Device 3 | . 6 . 8 . Storage 12 | . 14 14 9 4 Processor 1 | . . . 7 9 Protection 8 | . 7 12 6 . Energy Gun 6 | . 14 2 2 1 Energy Cannon 5 | . . 11 5 . Ballistic Gun 2 | . 4 2 1 . Ballistic Cannon 3 | . . 6 6 . Launcher 6 | . 9 5 . 8 Peak Build Rating 30 | 6 9 13 30 15 Average Rating 11 | 5 7 11 19 12 On Entrance 7 | . 6 9 13 9 Naked Turns . | . . . . . Heaviest Build 34 | 11 23 33 34 23 Greatest Support 40 | 40 40 40 26 20 Greatest Overweight (x) 4 | 1 . 1 3 4 Average Overweight (x) . | . . . . 1 Largest Inventory Capacity 10 | 8 10 10 10 10 Average Capacity 9 | 7 9 10 10 7 Most Carried 10 | 6 10 10 10 8 Average Carried 8 | 3 8 9 8 5 Final Capacity 10 | 8 10 10 10 5 Final Carried 10 | 5 10 10 7 5 Class Distribution -------------------- 50% | Mutant 48% | Scavenger-Mutant Dominant Class ---------------- Scavenger-Mutant | -10/Materials Mutant | -10/Subcaves Scavenger-Mutant | -8/Materials Mutant | -8/Garrison Resources | -11 -10 -10 -8 -8 ----------- Run | Yrd Mat Sub Mat Gar Matter Collected 1449 | 290 243 422 395 99 Remotely . | . . . . . Salvage Created 1499 | 121 399 293 554 132 Parts 82 | 9 27 18 23 5 Haulers Intercepted 2 | . 1 . 1 . Recyclers Shooed 2 | . . . 2 . Parts Field Recycled . | . . . . . Retrieved Matter . | . . . . . Parts Self-Destructed 6 | . . 6 . . Prevented . | . . . . . Kills | -11 -10 -10 -8 -8 ------- Run | Yrd Mat Sub Mat Gar Combat Hostiles Destroyed 33 | . 11 10 7 5 Guns 12 | . 7 2 3 . Cannons 10 | . . 6 4 . AOE 11 | . 4 2 . 5 Classes Destroyed 11 | 2 5 1 3 . Worker 1 | . 1 . . . Tunneler 2 | 2 . . . . Hauler 2 | . 1 . 1 . Recycler 4 | 1 . . 3 . Watcher 2 | . 1 . 1 . Swarmer 3 | . 3 . . . Cutter 1 | . . . 1 . Grunt 14 | . 8 . 3 3 Sentry 3 | . . . 1 2 Specialist 2 | . . . 2 . Subdweller 10 | . . 10 . . Best Kill Streak 4 | 1 2 2 4 2 Combat Bots Only 2 | . 2 2 2 2 Max Kills in Single Turn 1 | 1 1 1 1 1 Gunslinging . | . . . . . Exploded 1 | . 1 1 . 1 Melee . | . . . . . Uniques/NPCs Destroyed . | . . . . . Combat | -11 -10 -10 -8 -8 -------- Run | Yrd Mat Sub Mat Gar Hostile Shots Fired 245 | . 42 49 124 30 Missed 67 | . 12 8 40 7 Damage Taken 2857 | . 365 816 1217 459 Core 742 | . 39 150 408 145 Absorbed by Shields . | . . . . . Ignored by Resistances 111 | . . 59 52 . Core Remaining (%) 62 | 100 . 24 . . Volleys Fired 154 | 12 35 40 52 15 Largest 2 | 1 2 2 2 2 Hottest 119 | 40 73 119 119 98 Shots Fired 249 | 12 68 75 75 19 Gun 136 | 12 61 31 28 4 Cannon 81 | . . 34 47 . Launcher 32 | . 7 10 . 15 Special . | . . . . . Kinetic 98 | . 26 25 47 . Thermal 119 | 12 35 40 28 4 Explosive 32 | . 7 10 . 15 Electromagnetic . | . . . . . Robot Hit Streak 28 | 7 8 28 6 3 Robot Miss Streak 7 | 4 3 2 7 4 Penetration Max . | . . . . . Secondary Targets 2 | . 1 . 1 . Max Gunslinging Chain 1 | . 1 . 1 . Shots Hit Robots 158 | 8 43 62 39 6 Core Hits 76 | 4 24 18 17 13 Critical Kills 1 | . . . 1 . Critical Parts Destroyed 1 | . . . 1 . Critical Strikes 4 | . . 1 3 . Meltdown 1 | . . . 1 . Destroy 1 | . . . 1 . Blast 2 | . . 1 1 . Melee Attacks . | . . . . . Impact . | . . . . . Slashing . | . . . . . Piercing . | . . . . . Sneak Attacks . | . . . . . Combat Hostiles . | . . . . . Follow-up Attacks . | . . . . . Damage Inflicted 3608 | 87 801 1395 904 421 Guns 1074 | 87 469 243 258 17 Cannons 1323 | . . 678 645 . Explosions 1198 | . 320 474 . 404 Melee . | . . . . . Ramming 13 | . 12 . 1 . Kinetic 998 | . 207 227 564 . Thermal 1399 | 87 262 694 339 17 Explosive 1198 | . 320 474 . 404 Electromagnetic . | . . . . . Impact . | . . . . . Slashing . | . . . . . Piercing . | . . . . . Highest Corruption 2 | . 2 2 . . Average Corruption 2 | . 2 2 . . Corruption Purged . | . . . . . Corruption Blocked . | . . . . . Effects 30 | . 6 24 . . Message Errors 10 | . 2 8 . . Matter Fused 11 | . 3 8 . . Heat Flow Errors 3 | . . 3 . . Energy Discharges 2 | . . 2 . . Parts Fused 1 | . . 1 . . Data Loss (minor) 2 | . . 2 . . Data Loss (major) 1 | . 1 . . . Overload Shots . | . . . . . Overflow Damage 21 | . 5 8 8 . Projectiles 8 | . . . 8 . Explosions 13 | . 5 8 . . Melee . | . . . . . Knockbacks 8 | . . 1 7 . Impact . | . . . . . Kinetic 7 | . . 1 6 . Secondary 1 | . . . 1 . Self-Inflicted Damage 144 | . 17 . . 127 Shots 7 | . 1 . . 6 Rammed 3 | . 2 . 1 . Targets Rammed 3 | . 2 . 1 . Kicked . | . . . . . Crushed . | . . . . . Highest Temperature 332 | . 90 257 332 27 Average Temperature 83 | . 35 61 137 15 Received Heat Transfer 645 | . 177 108 207 153 Effects 4 | . . . 4 . Shutdowns 1 | . . . 1 . Interference 1 | . . . 1 . Matter Decay 1 | . . . 1 . Damage (minor) 1 | . . . 1 . Siege Activations . | . . . . . Robots Corrupted . | . . . . . Combat Hostiles . | . . . . . Parts Fried . | . . . . . Impact Corruptions . | . . . . . Robots Melted 1 | . . . 1 . Combat Hostiles . | . . . . . Parts Melted . | . . . . . Heat Transferred 2323 | 200 575 1065 446 37 Parts Sabotaged . | . . . . . Parts Stolen . | . . . . . Parts Stripped . | . . . . . Power Chain Reactions . | . . . . . Alert | -11 -10 -10 -8 -8 ------- Run | Yrd Mat Sub Mat Gar Peak Influence 275 | 15 275 . 259 271 Initial 41 | . 9 . . 41 Average 108 | 6 112 . 105 137 Maximum Alert Level 1 | . 1 . 1 1 Low Security (%) 90 | 100 90 . 92 83 Level 1 9 | . 9 . 7 16 Level 2 . | . . . . . Level 3 . | . . . . . Level 4 . | . . . . . Level 5 . | . . . . . High Security . | . . . . . Max Security . | . . . . . Squads Dispatched 5 | . 2 . 3 . Investigation 1 | . 1 . . . Extermination . | . . . . . Reinforcement 4 | . 1 . 3 . Assault . | . . . . . Garrison . | . . . . . Intercept . | . . . . . Searches Triggered . | . . . . . Construction Impeded . | . . . . . Haulers Reinforced . | . . . . . Active Scanning Responses . | . . . . . Cargo Convoy Interrupts . | . . . . . Stealth | -11 -10 -10 -8 -8 --------- Run | Yrd Mat Sub Mat Gar Distress Signals 6 | . 1 . 5 . Communications Jammed . | . . . . . Distress Signals . | . . . . . Times Spotted 63 | . 21 12 23 7 Peak Tracking Total 10 | . 4 3 10 4 Tactical Retreats 8 | . 2 . 5 1 Traps | -11 -10 -10 -8 -8 ------- Run | Yrd Mat Sub Mat Gar Traps Triggered 2 | . 2 . . . Indirectly . | . . . . . Trap Hack Attempts . | . . . . . Triggered . | . . . . . Disarmed . | . . . . . Reprogrammed . | . . . . . Reused 2 | . . . . 2 Traps Extracted . | . . . . . Installed 3 | . . . . 3 Triggered 2 | . . . . 2 Most Traps Carried 4 | . . . . 4 Machines | -11 -10 -10 -8 -8 ---------- Run | Yrd Mat Sub Mat Gar Machines Disabled 5 | . 1 . . 4 Max in Single Turn 2 | . 1 . . 2 Machines Repaired . | . . . . . Machines Dismantled . | . . . . . Machines Sabotaged . | . . . . . Overloaded Fab Kills . | . . . . . Hacking | -11 -10 -10 -8 -8 --------- Run | Yrd Mat Sub Mat Gar Machines Accessed 10 | . 6 . 4 . Terminals 9 | . 6 . 3 . Fabricators . | . . . . . Repair Stations . | . . . . . Recycling Units . | . . . . . Scanalyzers . | . . . . . Garrison Access 1 | . . . 1 . Total Hacks 24 | . 14 . 10 . Successful 7 | . 2 . 5 . Failed 16 | . 11 . 5 . Catastrophic 5 | . 4 . 1 . Database Lockouts 1 | . 1 . . . Manual 23 | . 15 . 8 . Terminals 23 | . 14 . 9 . Fabricators . | . . . . . Repair Stations . | . . . . . Recycling Units . | . . . . . Scanalyzers . | . . . . . Garrison Access 1 | . . . 1 . Terminal Hacks 5 | . 2 . 3 . Robot Analysis 2 | . 1 . 1 . Terminal Index 2 | . 1 . 1 . Alert Level 1 | . . . 1 . Fabricator Hacks . | . . . . . Repair Station Hacks . | . . . . . Recycling Unit Hacks . | . . . . . Scanalyzer . | . . . . . Garrison Access Hacks 1 | . . . 1 . Unlock Access 1 | . . . 1 . Unauthorized Hacks 1 | . . . 1 . Terminals 1 | . . . 1 . Botnet 1 | . . . 1 . Fabricators . | . . . . . Repair Stations . | . . . . . Recycling Units . | . . . . . Scanalyzers . | . . . . . Garrison Access . | . . . . . Data Cores Recovered . | . . . . . Used . | . . . . . Hacking Detections 8 | . 5 . 3 . Full Trace Events . | . . . . . Feedback Events . | . . . . . Feedback Blocked . | . . . . . Robot Schematics Acquired . | . . . . . Robots Built . | . . . . . Authchips . | . . . . . Time . | . . . . . Total Robot Build Rating . | . . . . . Part Schematics Acquired . | . . . . . Parts Built . | . . . . . Authchips . | . . . . . Time . | . . . . . Total Part Build Rating . | . . . . . Parts Repaired . | . . . . . Time . | . . . . . Parts Recycled . | . . . . . Recycled Matter . | . . . . . Retrieved Matter . | . . . . . Retrieved Components . | . . . . . Parts Scanalyzed . | . . . . . Part Schematics Acquired . | . . . . . Parts Damaged . | . . . . . Bothacking | -11 -10 -10 -8 -8 ------------ Run | Yrd Mat Sub Mat Gar Used RIF Installer . | . . . . . Robots Hacked . | . . . . . Non-combat . | . . . . . Combat . | . . . . . Robot Hacks Applied . | . . . . . Relay Couplers Released . | . . . . . Fabnet Peak Effective % . | . . . . . Robots Rewired . | . . . . . Allies Hacked . | . . . . . Hacks Repelled . | . . . . . Allies | -11 -10 -10 -8 -8 -------- Run | Yrd Mat Sub Mat Gar Total Allies . | . . . . . Largest Group . | . . . . . Highest-Rated Group . | . . . . . Highest-Rated Ally . | . . . . . Total Orders . | . . . . . Ally Attacks . | . . . . . Total Damage . | . . . . . Kills . | . . . . . Allies Corrupted . | . . . . . Allies Melted . | . . . . . Intel | -11 -10 -10 -8 -8 ------- Run | Yrd Mat Sub Mat Gar Robot Analysis Total 2 | . 1 . 1 . Derelict Logs Recovered . | . . . . . Drone Launches . | . . . . . Drone Recoveries . | . . . . . Exploration | -11 -10 -10 -8 -8 ------------- Run | Yrd Mat Sub Mat Gar Turns Passed 3795 | 136 1243 1656 427 333 Spaces Moved 1841 | 59 654 747 206 175 Core 50 | 5 . . 4 41 Treads 1492 | 54 654 747 37 . Legs 9 | . . . . 9 Wheels 192 | . . . 67 125 Hover 2 | . . . 2 . Flight 96 | . . . 96 . Fastest Speed 26 | 50 160 160 26 100 Average Speed 165 | 151 160 196 104 134 Slowest Speed 250 | 160 160 240 240 250 Overloaded Moves . | . . . . . Propulsion Burnouts . | . . . . . Robots Hopped 3 | . . . 3 . Cave-ins Triggered 1 | . . . 1 . Exploration Rate (%) 39 | 5 98 45 22 28 Regions Visited 4 Branch Regions 1 Pre-discovered Areas 1 | . . 1 . . Known Exits Taken 1 | . . . 1 . Unknown Exits Taken 3 | 1 1 1 . . Scrap Searched 2 | . . 2 . . Spaces Dug . | . . . . . Terrain Destroyed 203 | . 29 77 4 93 Melee . | . . . . . Projectile 8 | . . 4 4 . AOE 195 | . 29 73 . 93 Terrain Rammed . | . . . . . Walls Destroyed . | . . . . . Machines Disabled . | . . . . . Actions | -11 -10 -10 -8 -8 --------- Run | Yrd Mat Sub Mat Gar Total 2341 | 91 791 867 335 257 Wait 217 | 4 56 58 52 47 Move 1831 | 58 653 746 199 175 Hop 3 | . . . 3 . Pick Up 34 | 5 16 6 2 5 Fast Attach 28 | 7 3 4 11 3 Attach 15 | 1 1 2 7 4 Detach 9 | 2 2 . 4 1 Swap 10 | 1 5 3 1 . Drop 34 | 1 18 8 3 4 Fire 154 | 12 35 40 52 15 Melee . | . . . . . Ram 1 | . . . 1 . Kick . | . . . . . Crush 2 | . 2 . . . Escape Stasis . | . . . . . Rewire . | . . . . . Trap 3 | . . . . 3 Miscellaneous . | . . . . . Route ------- -11/Scrapyard -10/Materials (discovered 5 exits: [*Mat x3] / [*Min] / [*Sub]) -10/Subcaves -8/Materials -8/Garrison History --------- Turn | Location | Event 2 | -11/Scrapyard | Met Revision 17 13 | -11/Scrapyard | Discovered new exit (range 16) 137 | -11/Scrapyard | Entered Materials 301 | -10/Materials | Build established: Mutant 664 | -10/Materials | Discovered new exit (range 15) 746 | -10/Materials | Discovered new exit (range 5) 866 | -10/Materials | Build established: Scavenger-Mutant 894 | -10/Materials | Discovered new exit (range 15) 960 | -10/Materials | Central database locked down 1099 | -10/Materials | Discovered new exit (range 15) 1360 | -10/Materials | Discovered new exit (range 14) 1380 | -10/Materials | Entered Subcaves 1388 | -10/Subcaves | A swath of the cavern ceiling suddenly collapsed 1582 | -10/Subcaves | Shifting Twisted Machinery released Mak. Thermal Plating 1583 | -10/Subcaves | Shifting Twisted Machinery released Flamer 1912 | -10/Subcaves | Learned location of Zion (-7) 1912 | -10/Subcaves | Met a Zionite searching for "candidates" 2048 | -10/Subcaves | Core integrity fell below 50% 2167 | -10/Subcaves | A swath of the cavern ceiling suddenly collapsed 2227 | -10/Subcaves | Shifting Twisted Machinery released Mak. Kinetic Plating 2363 | -10/Subcaves | Build established: Mutant 2837 | -10/Subcaves | Disturbed a concealed Subdweller 3017 | -10/Subcaves | Discovered new exit (range 7) 3036 | -10/Subcaves | Entered Materials 3036 | -8/Materials | Evolved 4 slots: Propulsion x2, Utility x2 3344 | -8/Materials | Build established: Scavenger-Mutant 3407 | -8/Materials | Lost 8 parts (1p2n2u3w) 3439 | -8/Materials | Crushed by falling debris 3449 | -8/Materials | Core integrity fell below 50% 3461 | -8/Materials | Identified exit to Garrison 3463 | -8/Materials | Entered Garrison 3535 | -8/Garrison | Core integrity fell below 20% 3591 | -8/Garrison | Triggered checkpoint 3691 | -8/Garrison | Triggered checkpoint 3726 | -8/Garrison | Build established: Mutant 3796 | -8/Garrison | Destroyed by G-47 Trooper with Particle Gun Last Messages --------------- 03640_ Com. Wheel destroyed. 03641_ Critical hit (Burn: +37). Garrison Door activated. 03643_ Med. Storage Unit destroyed. 03643_ Critical hit (Burn: +37). 03644_ The unstable cave ceiling collapses. 03644_ Y-45 Defender destroyed. 03645_ The unstable cave ceiling collapses. 03648_ Y-45 Defender destroyed. 03658_ The unstable cave ceiling collapses. 03737_ Rocket Launcher destroyed. 03739_ Deuterium Engine destroyed. 03741_ G-47 Trooper destroyed. 03746_ Acquired Particle Gun. 03748_ Acquired 51 matter. 03769_ G-47 Trooper destroyed. 03775_ Acquired Aluminum Leg. 03779_ Acquired 48 matter. 03792_ G-47 Trooper destroyed. 03793_ The unstable cave ceiling collapses. Map ----- +----------------------------------------------------+ | ?????????????????????????????????????????????????? | | ?????????????????????????????????????????????????? | | ?????????????????????????????????????????????????? | | ?????????????????????????????????????????????????? | | ?????????????????????????????????????????????????? | | ?????????????????????????????????????????????????? | | ?????????????????????????????????????????????????? | | ?????????????????????????????????????????????????? | | ?????????????????????????????????????????????????? | | ?????????????????????????????????????????????????? | | ?????????????????????????????????????????????????? | | ?????????????????????????????????????????????????? | | ?????????????????????????????????????????????????? | | ?????????????????????????????????????????????????? | | ?????????????????????????????????????????????????? | | ?????????????????????????????????????????????????? | | ?????????????????????????????????????????????????? | | ?????????????????????????????????????????????????? | | ?????????????????????????????????????????????????? | | ?????????????????????????????????????????????????? | | ????????????????#######??????????????????????????? | | ???????????????## ???????????????????????????? | | ???????????????# ????????????????????????????? | | ??????????????## #??###??????????????????????? | | ??????????????# # #??????????????????????? | | ?????????????# @#??????????????????????? | | ??????????????# #??????????????????????? | | ??????????????## g # ##??????????????????????? | | ???????????????# ?# #???????????????????????? | | ?????# ####""""# ??# #???????????????????????? | | ?????# ######## #??????????????????? | | ???? #??????????????????? | | ???? #??????????????????? | | ????## ## ## ###########??????????????????? | | ?????# ## ## ###??????????????????????????? | | ?????" #??????????????????????????? | | ?????" ##?#######?????????????????? | | ?????" # ## # ###???????????????? | | ?????" ## # ####????????????? | | ?????# ## ## #### # # # #????????????? | | ?????? ??# ##^ # # # #######??????? | | ?????# #??? | | ?????# # # ### #??????? | | ?????# # # ##????????????? | | ?????## ##""""## ## ## # # ####?????????????? | | ????????????????# ?#### # ##???????????????? | | ????????????????# ????# ## ###????????????????? | | ????????????????# ????# # + ?????????????????? | | ????????????????# ????# ## ####????????????????? | | ????????????????# ???? ## #???????????????????? | +----------------------------------------------------+ Best States ------------- Heat Dissipation 31 Energy Generation 15 Energy Capacity 275 Matter Stores 300 Matter Capacity 300 Sight Range 16 Robot Scan Range 14 Terrain Scan Density 10 Additional Mass Support 6 Armor Coverage 150 Resistance: KI 10 Resistance: TH 10 Evasion (%) 64 Recoil Reduction 2 Item Schematics ----------------- None Robot Schematics ------------------ None Fabricated ------------ Nothing Alien Tech Used ----------------- None Achievements -------------- None Challenges ------------ None Game ------ Seed PitchforkCatalystPower Manual? 0 Play Time 00:34:04 Cumulative 71.4 hours Start 2024.10.04 @ 12:28:05 End 2024.10.04 @ 13:22:51 Sessions 1 Manual Loads 0 Difficulty Rogue Special Mode None Game No. 69 Rogue 69 Adventurer 0 Explorer 0 Win Type - Total 0 Types 0/0/0/0/0/0/0/0/0 Lore% 15 Gallery% 42 Achievement% 36 Wizard Run 0 Options --------- Layout 0 ASCII 0 Keyboard 1 Movement Numpad Keybinds 0 Fullscreen 2 Font 24/Smallcaps Map View 76x50 Zoom Use 0% Tactical HUD 1 Map Filters NONE Filters NONE Steam 1 RUN: c8a05a6e-d6d7-4dde-a344-1365bf6321ff